fUST/lending_fUST_20240311
["ID","MTS","AMOUNT","RATE_DAILY","PERIOD"]
[318232675,1710121833397,-201.0348662,0.00023178,2]
[318232677,1710121833406,-185.2036933,0.00023452,2]
[318232679,1710121833418,-500.0,0.00023561,2]
[318232681,1710121833428,-500.0,0.00023561,2]
[318232683,1710121833437,-1271.9311098,0.00023561,2]
[318233143,1710121838224,-890.49600179,0.00023561,2]
[318233152,1710121838301,-3052.27288841,0.00023561,2]
[318233154,1710121838311,-2167.29083957,0.00023561,2]
[318233349,1710121840184,-3047.40916043,0.00023561,2]
[318233351,1710121840194,-196.46021208,0.00023561,2]
[318233353,1710121840203,-759.48981038,0.000237,2]
[318233355,1710121840218,-1837.97309946,0.000237,2]
[318233357,1710121840229,-5214.7,0.00023898,2]
[318233359,1710121840239,-928.68064744,0.00023899,2]
[318233361,1710121840247,-484.68382173,0.00023899,2]
[318233363,1710121840256,-500.0,0.00023899,2]
[318233365,1710121840265,-500.0,0.00023899,2]
[318233367,1710121840275,-405.60162974,0.00023899,2]
[318233369,1710121840284,-500.0,0.00023899,2]
[318233371,1710121840293,-613.37571599,0.00023899,2]
[318233373,1710121840302,-1473.44963525,0.00023899,2]
[318233376,1710121840316,-3741.25036475,0.00023899,2]
[318233378,1710121840325,-34581.06632715,0.000239,2]
[318233381,1710121840347,-28821.67605828,0.000239,2]
[318233383,1710121840356,-482.74334282,0.000239,2]
[318233385,1710121840366,-545.527463,0.000239,2]
[318233387,1710121840377,-187.17242242,0.00023997,2]
[318233389,1710121840386,-500.64013626,0.00023997,2]
[318233391,1710121840396,-500.0,0.00023997,2]
[318233393,1710121840406,-522.38657364,0.00023997,2]
[318233394,1710121840414,-5214.7,0.00023997,2]
[318233395,1710121840424,-155.53526883,0.00023998,2]
[318233396,1710121840433,-8329.27974236,0.00023998,2]
[318233397,1710121840442,-155.17557081,0.00023998,2]
[318233399,1710121840451,-155.46012194,0.00023998,2]
[318233401,1710121840460,-539.80163169,0.00023998,2]
[318233403,1710121840469,-236.93755119,0.00023998,2]
[318233405,1710121840480,-878.03643109,0.00023998,2]
[318233407,1710121840490,-155.5463427,0.00023998,2]
[318233409,1710121840499,-155.53158992,0.00023998,2]
[318233411,1710121840508,-598.26031727,0.00023998,2]
[318233413,1710121840517,-291.48347658,0.00023998,2]
[318233415,1710121840527,-155.36942989,0.00023998,2]
[318233417,1710121840536,-303.15172866,0.00023998,2]
[318233419,1710121840545,-155.30792769,0.00023998,2]
[318233421,1710121840555,-5214.7,0.00023998,2]
[318233423,1710121840564,-5214.7,0.00023998,2]
[318233425,1710121840573,-2120.51711828,0.00023999,2]
[318233427,1710121840583,-684.95017558,0.00023999,2]
[318233429,1710121840592,-382.52270624,0.00023999,7]
[318233431,1710121840602,-1478.542204,0.00023999,2]
[318233433,1710121840611,-239.69029989,0.00023999,2]
[318233435,1710121840620,-400.0,0.00023999,2]
[318233437,1710121840629,-151.0,0.00023999,2]
[318233439,1710121840638,-151.0,0.00023999,2]
[318233440,1710121840648,-296.07193654,0.00023999,2]
[318233443,1710121840662,-26.07374546,0.00023999,2]
[318233445,1710121840671,-322.145682,0.00023999,2]
[318233447,1710121840679,-5214.7,0.00023999,2]
[318233449,1710121840689,-5214.7,0.00023999,2]
[318233451,1710121840698,-5214.7,0.00023999,2]
[318233453,1710121840707,-5214.7,0.00023999,2]
[318233455,1710121840716,-5214.7,0.00023999,2]
[318233457,1710121840727,-2784.63147679,0.00023999,2]
[318233460,1710121840741,-2430.06852321,0.00023999,2]
[318233462,1710121840750,-5214.7,0.00023999,2]
[318233464,1710121840759,-5214.7,0.00023999,2]
[318233466,1710121840769,-5214.7,0.00023999,2]
[318233468,1710121840778,-4991.78197259,0.00023999,2]
[318233471,1710121840793,-222.91802741,0.00023999,2]
[318233473,1710121840803,-5214.7,0.00023999,2]
[318233475,1710121840812,-1062.56082262,0.00023999,2]
[318233487,1710121840912,-3474.17712285,0.00023999,2]
[318233489,1710121840927,-677.96205453,0.00023999,2]
[318233491,1710121840937,-715.84802829,0.00023999,2]
[318233494,1710121840951,-2678.61388657,0.00023999,2]
[318233496,1710121840965,-1820.23808514,0.00023999,2]
[318233498,1710121840977,-5214.7,0.00023999,2]
[318233500,1710121840986,-5214.7,0.00023999,2]
[318233502,1710121840995,-5214.7,0.00023999,2]
[318233504,1710121841005,-232.81442263,0.00023999,2]
[318233507,1710121841016,-4981.93052472,0.00023999,2]
[318233509,1710121841025,-25158.25763611,0.00024,10]
[318233511,1710121841036,-16778.79356158,0.00024,10]
[318233513,1710121841048,-5699.33136642,0.00024,10]
[318233992,1710121846333,-686.93817482,0.00018735,2]
[318233994,1710121846342,-2440.21162518,0.00024,10]
[318233998,1710121846367,-10068.56105558,0.00018735,2]
[318234000,1710121846379,-26448.12196873,0.00018735,2]
[318234002,1710121846388,-41652.90133274,0.00024,10]
[318234013,1710121846503,-1.13488056,0.00024,10]
[318234085,1710122140697,158.45,0.000163,2]
[318234086,1710122161905,19025.19185566,0.000163,2]
[318234087,1710122163246,686.93817482,0.000163,2]
[318234088,1710122166411,19025.19185566,0.000163,2]
[318234089,1710122179307,686.93817482,0.000163,2]
[318234090,1710122199294,686.93817482,0.000163,2]
[318234091,1710122200526,19025.19185566,0.000163,2]
[318234092,1710122216421,19025.19185566,0.000163,2]
[318234093,1710122217251,686.93817482,0.000163,2]
[318234094,1710122234427,19025.19185566,0.000163,2]
[318234095,1710122235253,686.93817482,0.000163,2]
[318234097,1710122251278,686.93817482,0.000163,2]
[318234098,1710122252441,19025.19185566,0.000163,2]
[318234099,1710122271261,686.93817482,0.000163,2]
[318234100,1710122276430,19025.19185566,0.000163,2]
[318234101,1710122279775,15952.47806843,0.000163,2]
[318234102,1710122287261,686.93817482,0.000163,2]
[318234103,1710122297775,3119.02744811,0.000163,2]
[318234104,1710122298430,19025.19185566,0.000163,2]
[318234105,1710122311302,686.93817482,0.000163,2]
[318234106,1710122314441,19025.19185566,0.000163,2]
[318234107,1710122327270,370.81212502,0.000163,2]
[318234108,1710122334439,19025.19185566,0.000163,2]
[318234109,1710122356457,6959.93496353,0.000163,2]
[318234110,1710122518135,1837.4345625,0.00027,120]
[318234166,1710122997860,2016.0,0.00027,120]
[318234220,1710123032564,-1951.90972773,0.00018704,2]
[318234221,1710123032573,-624.4418368,0.00018705,2]
[318234222,1710123032583,-326.52788908,0.00018735,2]
[318234223,1710123032592,-160.91444761,0.000189,2]
[318234224,1710123032601,-607.64905388,0.0002,2]
[318234225,1710123032611,-186.8198037,0.00020454,2]
[318234226,1710123032620,-172.19662,0.00020686,2]
[318234227,1710123032629,-183.27460429,0.00020829,2]
[318234267,1710123038346,-6079.86348251,0.00020829,2]
[318234269,1710123038356,-184.9023614,0.00020999,2]
[318234271,1710123038365,-529.88687064,0.00021,2]
[318234273,1710123038374,-985.2750151,0.00021129,2]
[318234275,1710123038384,-258.267672,0.00021142,2]
[318234277,1710123038393,-165.0,0.00022,2]
[318234279,1710123038403,-165.0,0.00022192,2]
[318234281,1710123038412,-177.106665,0.00022696,2]
[318234283,1710123038421,-1087.90324087,0.00022903,2]
[318234285,1710123038432,-165.0,0.00023014,2]
[318234287,1710123038441,-307.0317509,0.00023041,2]
[318234289,1710123038450,-1633.66312384,0.000235,21]
[318234291,1710123038459,-500.0,0.00023561,2]
[318234293,1710123038468,-500.0,0.00023561,2]
[318234295,1710123038478,-500.86021644,0.00023561,2]
[318234297,1710123038487,-5749.13806477,0.000238,2]
[318234299,1710123038499,-1998.10887097,0.000238,2]
[318234493,1710123040441,-4268.96882847,0.000238,2]
[318234783,1710123043359,-402.86338597,0.000238,2]
[318234792,1710123043430,-7044.00994759,0.000238,2]
[318234794,1710123043442,-500.0,0.00023899,2]
[318234796,1710123043452,-500.0,0.00023899,2]
[318234798,1710123043462,-3606.80077184,0.00023899,2]
[318234800,1710123043472,-160.91444761,0.000239,2]
[318234801,1710123043482,-500.0,0.00023997,2]
[318234803,1710123043492,-682.44741678,0.00023998,2]
[318234806,1710123043501,-186.43811292,0.00023998,2]
[318234807,1710123043511,-238.88134012,0.00023998,2]
[318234809,1710123043522,-735.59659855,0.00023998,2]
[318234812,1710123043532,-500.0,0.00023998,2]
[318234814,1710123043542,-500.0,0.00023998,2]
[318234816,1710123043552,-155.33256208,0.00023998,2]
[318234818,1710123043565,-155.45345783,0.00023998,2]
[318234820,1710123043575,-155.14894299,0.00023998,2]
[318234822,1710123043585,-323.55065439,0.00023999,2]
[318234823,1710123043594,-5000.0,0.00023999,5]
[318234825,1710123043604,-169.31838882,0.00023999,2]
[318234828,1710123043614,-500.0,0.00023999,2]
[318234829,1710123043624,-500.0,0.00023999,2]
[318234832,1710123043634,-501.68409743,0.00023999,2]
[318234833,1710123043644,-12057.39294814,0.00024,10]
[318234836,1710123043657,-4077.71074272,0.00024,10]
[318235132,1710123046660,-351.10475835,0.00023998,2]
[318237670,1710123073832,-9622.91744019,0.00022,6]
[318237673,1710123073855,-3098.45416781,0.00022,6]
[318237677,1710123073878,-3098.45416781,0.00022,6]
[318237680,1710123073899,-3098.45416781,0.00022,6]
[318237683,1710123073919,-3098.45416781,0.00022,6]
[318237686,1710123073940,-3098.45416781,0.00022,6]
[318237689,1710123073962,-3098.45416781,0.00022,6]
[318237692,1710123073983,-3098.45416781,0.00022,6]
[318237695,1710123074004,-3098.45416781,0.00022,6]
[318237699,1710123074025,-3098.45416781,0.00022,6]
[318237702,1710123074046,-3098.45316781,0.00022,6]
[318237705,1710123074067,-6778.46850727,0.000239,2]
[318237708,1710123074087,-1605.99994339,0.00023998,2]
[318237712,1710123074108,-626.09254531,0.00023998,2]
[318237715,1710123074128,-607.64905388,0.00023999,2]
[318237718,1710123074149,-149074.33183186,0.00024,10]
[318238466,1710124232631,-1302.90139904,0.00018207,2]
[318238468,1710124232644,-1294.93932432,0.00018207,2]
[318238470,1710124232654,-323.79803082,0.0002,2]
[318238535,1710124238547,-283.85102306,0.0002,2]
[318238536,1710124238557,-9217.65865894,0.00021358,2]
[318238539,1710124238569,-4666.77865577,0.00021358,2]
[318238541,1710124238580,-6841.03423511,0.00021358,2]
[318238543,1710124238592,-1548.13399508,0.00021358,2]
[318238545,1710124238602,-167.44208,0.00021577,2]
[318238547,1710124238612,-174.892728,0.000217,2]
[318238549,1710124238621,-663.55271212,0.0002179,2]
[318238551,1710124238631,-352.7034091,0.000219,2]
[318238553,1710124238641,-696.12884688,0.00021918,2]
[318238555,1710124238650,-178.0363659,0.00021953,2]
[318238557,1710124238662,-168.0,0.00022,2]
[318238559,1710124238672,-168.0,0.00022192,2]
[318238561,1710124238682,-1500.0,0.00022424,2]
[318238563,1710124238691,-2645.26751106,0.00022737,2]
[318238565,1710124238701,-622.17763561,0.00022879,2]
[318238567,1710124238711,-168.0,0.00023014,2]
[318238569,1710124238721,-167.44208,0.00023048,2]
[318238571,1710124238731,-1519.999427,0.0002325,2]
[318238573,1710124238740,-153.0,0.00023278,2]
[318238575,1710124238749,-153.0,0.00023278,2]
[318238577,1710124238758,-403.404322,0.00023278,2]
[318238579,1710124238768,-153.0,0.00023278,2]
[318238581,1710124238778,-153.0,0.00023278,2]
[318238583,1710124238788,-153.0,0.00023278,2]
[318238585,1710124238797,-153.0,0.00023552,2]
[318238587,1710124238806,-153.0,0.00023552,2]
[318238589,1710124238815,-153.0,0.00023552,2]
[318238591,1710124238825,-153.0,0.00023552,2]
[318238592,1710124238834,-153.0,0.00023552,2]
[318238595,1710124238843,-172.9022821,0.00023552,2]
[318238597,1710124238853,-409.31374173,0.00023798,2]
[318238599,1710124238862,-409.3137417,0.00023799,2]
[318238601,1710124238872,-409.3137417,0.00023799,2]
[318238602,1710124238881,-409.3137417,0.000238,2]
[318238604,1710124238891,-409.3137417,0.000238,2]
[318238606,1710124238900,-721.40805081,0.00023868,2]
[318238608,1710124238912,-500.0,0.00023898,2]
[318238610,1710124238921,-500.0,0.00023898,2]
[318238612,1710124238930,-501.8437286,0.00023898,2]
[318238614,1710124238939,-500.0,0.00023898,2]
[318238616,1710124238949,-500.0,0.00023898,2]
[318238618,1710124238958,-500.0,0.00023898,2]
[318238620,1710124238967,-500.0,0.00023898,2]
[318238622,1710124238976,-500.0,0.00023898,2]
[318238624,1710124238986,-500.0,0.00023898,2]
[318238626,1710124238995,-351.51913111,0.00023898,2]
[318238629,1710124239006,-2448.31258117,0.00023898,2]
[318238631,1710124239018,-474.000006,0.00023898,2]
[318238795,1710124240619,-1982.34828172,0.00023898,2]
[318238797,1710124240629,-116.20580847,0.00023898,2]
[318238799,1710124240642,-5139.97419153,0.00023898,2]
[318238801,1710124240651,-500.0,0.00023898,2]
[318238803,1710124240663,-500.0,0.00023898,2]
[318238805,1710124240673,-500.0,0.00023898,2]
[318238807,1710124240682,-509.30561462,0.00023898,2]
[318238809,1710124240692,-500.0,0.00023898,2]
[318238811,1710124240701,-500.0,0.00023898,2]
[318238814,1710124240711,-500.0,0.00023898,2]
[318238815,1710124240721,-500.0,0.00023898,2]
[318238817,1710124240731,-500.0,0.00023898,2]
[318238820,1710124240741,-500.0,0.00023898,2]
[318238821,1710124240751,-465.85917578,0.00023898,2]
[318238823,1710124240760,-500.0,0.00023898,2]
[318238825,1710124240770,-500.0,0.00023898,2]
[318238827,1710124240779,-500.0,0.00023898,2]
[318238829,1710124240788,-455.50885928,0.00023898,2]
[318238831,1710124240797,-500.0,0.00023898,2]
[318238833,1710124240807,-500.0,0.00023898,2]
[318238835,1710124240817,-500.0,0.00023898,2]
[318238837,1710124240826,-411.62040724,0.00023898,2]
[318238839,1710124240836,-500.0,0.00023898,2]
[318238841,1710124240845,-500.0,0.00023898,2]
[318238843,1710124240855,-500.0,0.00023898,2]
[318238845,1710124240864,-500.0,0.00023898,2]
[318238847,1710124240874,-531.85227467,0.00023898,2]
[318238849,1710124240883,-478.15639757,0.00023898,2]
[318238851,1710124240893,-500.0,0.00023898,2]
[318238853,1710124240902,-500.0,0.00023898,2]
[318238855,1710124240914,-500.0,0.00023898,2]
[318238857,1710124240924,-500.0,0.00023898,2]
[318238859,1710124240934,-180.68950565,0.00023899,2]
[318238861,1710124240943,-576.59994264,0.00023899,2]
[318238863,1710124240953,-500.0,0.00023899,2]
[318238865,1710124240964,-500.0,0.00023899,2]
[318238867,1710124240974,-500.0,0.00023899,2]
[318238869,1710124240985,-500.0,0.00023899,2]
[318238871,1710124240994,-500.0,0.00023899,2]
[318238873,1710124241004,-264.70453985,0.00023899,2]
[318238875,1710124241015,-500.0,0.00023899,2]
[318238877,1710124241024,-500.0,0.00023899,2]
[318238879,1710124241034,-500.0,0.00023899,2]
[318238881,1710124241044,-500.0,0.00023899,2]
[318238883,1710124241055,-500.0,0.00023899,2]
[318238885,1710124241066,-500.0,0.00023899,2]
[318238887,1710124241076,-500.0,0.00023899,2]
[318238889,1710124241086,-500.0,0.00023899,2]
[318238891,1710124241096,-500.0,0.00023899,2]
[318238893,1710124241107,-500.0,0.00023899,2]
[318238895,1710124241117,-601.11168153,0.00023899,2]
[318238897,1710124241127,-5256.18,0.00023899,2]
[318238899,1710124241139,-5256.18,0.00023899,2]
[318238901,1710124241150,-5256.18,0.00023899,2]
[318238903,1710124241159,-5256.18,0.00023899,2]
[318238905,1710124241174,-500.0,0.00023899,2]
[318238907,1710124241186,-500.0,0.00023899,2]
[318238910,1710124241195,-500.0,0.00023899,2]
[318238912,1710124241205,-463.71542433,0.00023899,2]
[318238913,1710124241215,-500.0,0.00023899,2]
[318238915,1710124241225,-251.64250108,0.00023899,2]
[318238918,1710124241235,-500.0,0.00023899,2]
[318238919,1710124241244,-500.0,0.00023899,2]
[318238921,1710124241253,-358.95186697,0.00023899,2]
[318238923,1710124241262,-500.0,0.00023899,2]
[318238925,1710124241271,-500.0,0.00023899,2]
[318238927,1710124241280,-500.0,0.00023899,2]
[318238929,1710124241289,-500.0,0.00023899,2]
[318238931,1710124241301,-2329.56265171,0.000239,2]
[318238933,1710124241311,-87882.53615599,0.000239,2]
[318238936,1710124241323,-5275.04123448,0.000239,2]
[318238938,1710124241335,-23238.23227733,0.000239,2]
[318238940,1710124241346,-30322.10892398,0.000239,2]
[318238942,1710124241355,-1000.0,0.00023972,2]
[318238944,1710124241366,-500.0,0.00023996,2]
[318238946,1710124241375,-500.0,0.00023996,2]
[318238948,1710124241385,-500.0,0.00023996,2]
[318238950,1710124241395,-500.0,0.00023996,2]
[318238960,1710124241474,-2605.67438507,0.00023997,2]
[318238963,1710124241506,-5256.18,0.00023997,2]
[318238965,1710124241516,-238.88134012,0.00023998,2]
[318238967,1710124241526,-323.9379845,0.00023998,2]
[318238969,1710124241536,-400.0,0.00023998,2]
[318238971,1710124241545,-540.60298917,0.00023998,2]
[318238973,1710124241555,-500.0,0.00023998,2]
[318238975,1710124241565,-500.0,0.00023998,2]
[318238977,1710124241574,-500.0,0.00023998,2]
[318238979,1710124241583,-500.0,0.00023998,2]
[318238981,1710124241592,-500.0,0.00023998,2]
[318238983,1710124241601,-273.69303755,0.00023998,2]
[318238985,1710124241613,-226.30696245,0.00023998,2]
[318238987,1710124241623,-500.0,0.00023998,2]
[318238989,1710124241633,-500.0,0.00023998,2]
[318238991,1710124241643,-500.0,0.00023998,2]
[318238993,1710124241652,-500.0,0.00023998,2]
[318238995,1710124241665,-500.0,0.00023998,2]
[318238997,1710124241674,-500.0,0.00023998,2]
[318238999,1710124241683,-500.0,0.00023998,2]
[318239001,1710124241693,-5256.18,0.00023998,2]
[318239003,1710124241702,-5256.18,0.00023998,2]
[318239005,1710124241711,-500.0,0.00023998,2]
[318239007,1710124241721,-500.0,0.00023998,2]
[318239009,1710124241731,-500.0,0.00023998,2]
[318239011,1710124241740,-500.0,0.00023999,2]
[318239013,1710124241749,-500.0,0.00023999,2]
[318239015,1710124241758,-500.0,0.00023999,2]
[318239017,1710124241768,-500.0,0.00023999,2]
[318239019,1710124241778,-504.04548015,0.00023999,2]
[318239021,1710124241787,-500.0,0.00023999,2]
[318239023,1710124241796,-500.0,0.00023999,2]
[318239025,1710124241810,-291.20129597,0.00023999,2]
[318239027,1710124241819,-502.42450855,0.00023999,2]
[318239029,1710124241828,-500.0,0.00023999,2]
[318239031,1710124241836,-500.0,0.00023999,2]
[318239033,1710124241846,-500.0,0.00023999,2]
[318239035,1710124241855,-500.0,0.00023999,2]
[318239037,1710124241865,-500.0,0.00023999,2]
[318239039,1710124241875,-500.0,0.00023999,2]
[318239041,1710124241885,-500.0,0.00023999,2]
[318239043,1710124241894,-500.0,0.00023999,2]
[318239045,1710124241903,-500.0,0.00023999,2]
[318239047,1710124241915,-500.0,0.00023999,2]
[318239049,1710124241924,-500.0,0.00023999,2]
[318239051,1710124241934,-500.0,0.00023999,2]
[318239053,1710124241943,-500.0,0.00023999,2]
[318239055,1710124241953,-382.14354233,0.00023999,2]
[318239057,1710124241962,-249.280161,0.00023999,2]
[318239059,1710124241972,-500.0,0.00023999,2]
[318239061,1710124241981,-543.222014,0.00023999,2]
[318239063,1710124241991,-189.40160448,0.00023999,2]
[318239065,1710124242000,-543.222014,0.00023999,2]
[318239066,1710124242009,-151.0,0.00023999,2]
[318239068,1710124242018,-151.0,0.00023999,2]
[318239071,1710124242030,-500.0,0.00023999,2]
[318239072,1710124242039,-500.0,0.00023999,2]
[318239074,1710124242048,-500.0,0.00023999,2]
[318239076,1710124242058,-500.0,0.00023999,2]
[318239078,1710124242067,-500.0,0.00023999,2]
[318239080,1710124242076,-455.62528335,0.00023999,2]
[318239081,1710124242085,-284.06793252,0.00023999,2]
[318239082,1710124242098,-215.93206748,0.00023999,2]
[318239083,1710124242107,-500.0,0.00023999,2]
[318239084,1710124242116,-500.0,0.00023999,2]
[318239085,1710124242127,-500.0,0.00023999,2]
[318239086,1710124242137,-211.37834959,0.00023999,2]
[318239087,1710124242146,-500.0,0.00023999,2]
[318239088,1710124242155,-500.0,0.00023999,2]
[318239089,1710124242165,-388.16411137,0.00023999,2]
[318239250,1710124243618,-645.20461627,0.000239,2]
[318239252,1710124243628,-111.83588863,0.00023999,2]
[318239254,1710124243638,-159.49280395,0.00023999,2]
[318239256,1710124243647,-500.0,0.00023999,2]
[318239258,1710124243657,-307.76469841,0.00023999,2]
[318239261,1710124243670,-192.23530159,0.00023999,2]
[318239263,1710124243680,-500.0,0.00023999,2]
[318239265,1710124243690,-423.18600189,0.00023999,2]
[318239268,1710124243702,-76.81399811,0.00023999,2]
[318239270,1710124243711,-500.0,0.00023999,2]
[318239272,1710124243720,-500.0,0.00023999,2]
[318239274,1710124243729,-500.0,0.00023999,2]
[318239276,1710124243738,-500.0,0.00023999,2]
[318239278,1710124243747,-500.0,0.00023999,2]
[318239279,1710124243757,-500.0,0.00023999,2]
[318239282,1710124243766,-500.0,0.00023999,2]
[318239283,1710124243776,-500.0,0.00023999,2]
[318239286,1710124243786,-500.0,0.00023999,2]
[318239287,1710124243796,-500.0,0.00023999,2]
[318239289,1710124243805,-153.67950293,0.00023999,2]
[318239291,1710124243814,-5256.18,0.00023999,2]
[318239293,1710124243823,-5256.18,0.00023999,2]
[318239295,1710124243833,-5256.18,0.00023999,2]
[318239297,1710124243842,-1422.8760259,0.00023999,2]
[318239300,1710124243854,-3833.3039741,0.00023999,2]
[318239302,1710124243863,-2991.6960259,0.00023999,2]
[318239304,1710124243874,-2264.4839741,0.00023999,2]
[318239306,1710124243884,-5256.18,0.00023999,2]
[318239308,1710124243893,-3322.59003361,0.00023999,2]
[318239595,1710124246659,-1933.58996639,0.00023999,2]
[318239597,1710124246670,-5256.18,0.00023999,2]
[318239599,1710124246679,-5256.18,0.00023999,2]
[318239601,1710124246689,-5256.18,0.00023999,2]
[318239603,1710124246698,-5256.18,0.00023999,2]
[318239605,1710124246708,-5256.18,0.00023999,2]
[318239607,1710124246718,-5256.18,0.00023999,2]
[318239609,1710124246727,-5256.18,0.00023999,2]
[318239611,1710124246736,-5256.40631806,0.00023999,2]
[318239613,1710124246746,-500.0,0.00023999,2]
[318239615,1710124246756,-500.0,0.00023999,2]
[318239617,1710124246766,-500.0,0.00023999,2]
[318239619,1710124246776,-500.0,0.00023999,2]
[318239621,1710124246785,-500.0,0.00023999,2]
[318239623,1710124246795,-500.0,0.00023999,2]
[318239625,1710124246804,-151.0,0.00023999,2]
[318239627,1710124246814,-500.0,0.00023999,2]
[318239630,1710124246824,-500.0,0.00023999,2]
[318239632,1710124246834,-500.0,0.00023999,2]
[318239634,1710124246843,-500.0,0.00023999,2]
[318239636,1710124246853,-500.0,0.00023999,2]
[318239637,1710124246862,-500.0,0.00023999,2]
[318239640,1710124246872,-529.32418493,0.00023999,2]
[318239641,1710124246882,-48512.78723062,0.00024,10]
[318239646,1710124246918,-25328.64420526,0.00024,10]
[318239648,1710124246932,-24875.03446,0.00024,10]
[318241138,1710124760512,-191.99609977,0.0002,2]
[318241139,1710124760537,-607.64905388,0.0002,2]
[318241141,1710125033070,151.59398038,0.00019303,2]
[318241142,1710125048803,2486.3,0.0002,2]
[318241143,1710125191342,472.7371388,0.000189,2]
[318241149,1710125338297,151.61825193,0.00018905,2]
[318241174,1710125432795,-607.64905388,0.00021223,2]
[318241175,1710125432805,-167.44208,0.00021224,2]
[318241176,1710125432815,-595.247495,0.00021591,2]
[318241177,1710125432824,-313.815813,0.00021661,2]
[318241178,1710125432921,-175.999696,0.00021687,2]
[318241179,1710125432932,-176.984932,0.00021918,2]
[318241180,1710125432941,-236.0,0.00022,2]
[318241181,1710125432950,-236.0,0.00022192,2]
[318241182,1710125432959,-236.0,0.00023014,2]
[318241183,1710125432968,-306.9615974,0.00023478,2]
[318241184,1710125432978,-259.3534582,0.00023752,2]
[318241185,1710125432986,-153.0,0.00023752,2]
[318241186,1710125432995,-153.0,0.00023752,2]
[318241187,1710125433004,-500.0,0.00023799,2]
[318241188,1710125433013,-500.0,0.00023799,2]
[318241189,1710125433022,-500.0,0.00023799,2]
[318241190,1710125433031,-500.0,0.00023799,2]
[318241191,1710125433040,-500.0,0.00023799,2]
[318241192,1710125433050,-532.34765645,0.00023799,2]
[318241193,1710125433059,-500.0,0.00023799,2]
[318241194,1710125433068,-500.0,0.00023799,2]
[318241195,1710125433077,-500.0,0.00023799,2]
[318241196,1710125433088,-296.72391794,0.00023799,2]
[318241197,1710125433097,-500.0,0.00023799,2]
[318241198,1710125433106,-500.0,0.00023799,2]
[318241199,1710125433116,-157.68556009,0.00023799,2]
[318241200,1710125433126,-521.85382511,0.00023799,2]
[318241201,1710125433137,-500.0,0.00023799,2]
[318241202,1710125433146,-500.0,0.00023799,2]
[318241203,1710125433155,-523.84342082,0.00023799,2]
[318241204,1710125433164,-500.0,0.00023799,2]
[318241205,1710125433173,-500.0,0.00023799,2]
[318241206,1710125433182,-500.0,0.00023799,2]
[318241207,1710125433192,-198.12493753,0.00023799,2]
[318241208,1710125433204,-409.38358363,0.00023799,2]
[318241209,1710125433213,-500.0,0.00023799,2]
[318241210,1710125433222,-500.0,0.00023799,2]
[318241211,1710125433231,-500.0,0.00023799,2]
[318241212,1710125433241,-417.55878001,0.00023799,2]
[318241213,1710125433250,-500.0,0.00023799,2]
[318241214,1710125433259,-161842.35136057,0.000238,2]
[318241215,1710125433268,-472.7371388,0.000239,2]
[318241216,1710125433277,-8276.0788872,0.00023974,2]
[318241217,1710125433286,-500.0,0.00023997,2]
[318241218,1710125433295,-526.03238446,0.00023998,2]
[318241219,1710125433304,-155.5287029,0.00023998,2]
[318241220,1710125433314,-530.50671862,0.00023998,2]
[318241221,1710125433323,-155.49638181,0.00023998,2]
[318241222,1710125433332,-212.77856045,0.00023998,2]
[318241223,1710125433342,-324.21878164,0.00023998,2]
[318241224,1710125433351,-163.35553047,0.00023998,2]
[318241225,1710125433361,-20572.63156225,0.00023998,2]
[318241226,1710125433370,-238.88134012,0.00023998,2]
[318241227,1710125433379,-156.51672582,0.00023998,2]
[318241228,1710125433388,-3954.82571452,0.00023998,2]